[Event "Early-Titled-Tuesday-Blitz-April-23-2024"]
[Site "Chess.com"]
[Date "2024.04.23"]
[Round "5"]
[White "MikeWizard"]
[Black "GlennTipton"]
[Result "1/2-1/2"]
[WhiteElo "2199"]
[BlackElo "2503"]
[TimeControl "180+1"]
[EndTime "8:59:20 PDT"]
[Termination "Game drawn - insufficient material"]

1. d4 {[%clk 0:03:00.9]} 1... Nf6 {[%clk 0:02:32]} 2. c4 {[%clk 0:03:00]} 2...
c6 {[%clk 0:02:30.8]} 3. Nf3 {[%clk 0:02:58.4]} 3... d5 {[%clk 0:02:31.7]} 4.
Nc3 {[%clk 0:02:58.4]} 4... a6 {[%clk 0:02:31.9]} 5. cxd5 {[%clk 0:02:55.4]}
5... cxd5 {[%clk 0:02:31.6]} 6. Bg5 {[%clk 0:02:54.8]} 6... Ne4 {[%clk
0:02:28.3]} 7. Qb3 {[%clk 0:02:33.8]} 7... Nxg5 {[%clk 0:02:14]} 8. Nxg5 {[%clk
0:02:32.6]} 8... e6 {[%clk 0:01:51.8]} 9. h4 {[%clk 0:02:22.3]} 9... Nc6 {[%clk
0:01:49.9]} 10. e3 {[%clk 0:02:21.4]} 10... h6 {[%clk 0:01:40.8]} 11. Nf3 {[%clk
0:02:20.4]} 11... b5 {[%clk 0:01:30]} 12. Bd3 {[%clk 0:02:16.6]} 12... Bd7
{[%clk 0:01:25.2]} 13. Rc1 {[%clk 0:02:10.8]} 13... Bd6 {[%clk 0:01:17.6]} 14.
Bb1 {[%clk 0:02:08.3]} 14... Na5 {[%clk 0:01:00.8]} 15. Qc2 {[%clk 0:02:04.1]}
15... Rc8 {[%clk 0:00:59]} 16. Qd3 {[%clk 0:01:47]} 16... b4 {[%clk 0:00:50.3]}
17. Ne2 {[%clk 0:01:46.7]} 17... Bb5 {[%clk 0:00:34.2]} 18. Qd2 {[%clk
0:01:46.2]} 18... Bxe2 {[%clk 0:00:26.4]} 19. Kxe2 {[%clk 0:01:38.9]} 19... Ke7
{[%clk 0:00:17.7]} 20. b3 {[%clk 0:01:34.1]} 20... Qb6 {[%clk 0:00:17.5]} 21.
Rxc8 {[%clk 0:01:30.6]} 21... Rxc8 {[%clk 0:00:17.4]} 22. Rc1 {[%clk 0:01:30.5]}
22... Rxc1 {[%clk 0:00:17.3]} 23. Qxc1 {[%clk 0:01:30]} 23... Qc6 {[%clk
0:00:17.9]} 24. Qxc6 {[%clk 0:01:24.6]} 24... Nxc6 {[%clk 0:00:18.8]} 25. Bd3
{[%clk 0:01:24.7]} 25... a5 {[%clk 0:00:19.2]} 26. Kd2 {[%clk 0:01:22.9]} 26...
Kd7 {[%clk 0:00:19.4]} 27. Kc2 {[%clk 0:01:22.8]} 27... Kc7 {[%clk 0:00:19.9]}
28. g3 {[%clk 0:01:21.7]} 28... Kb6 {[%clk 0:00:20.1]} 29. Kd2 {[%clk
0:01:15.7]} 29... Ne7 {[%clk 0:00:20.3]} 30. Ne5 {[%clk 0:01:13.9]} 30... Bxe5
{[%clk 0:00:19.9]} 31. dxe5 {[%clk 0:01:14]} 31... Kc7 {[%clk 0:00:20]} 32. Bb5
{[%clk 0:01:11.7]} 32... Kd8 {[%clk 0:00:20.9]} 33. Kd3 {[%clk 0:01:11.2]} 33...
Nf5 {[%clk 0:00:20.8]} 34. Ke2 {[%clk 0:01:05.8]} 34... Ne7 {[%clk 0:00:19.3]}
35. g4 {[%clk 0:01:00.2]} 35... f6 {[%clk 0:00:19.2]} 36. exf6 {[%clk 0:00:59]}
36... gxf6 {[%clk 0:00:20.1]} 37. f4 {[%clk 0:00:52.6]} 37... Ng6 {[%clk
0:00:17.8]} 38. h5 {[%clk 0:00:51.6]} 38... Nf8 {[%clk 0:00:18.2]} 39. Kf3
{[%clk 0:00:50.1]} 39... Ke7 {[%clk 0:00:18.6]} 40. Ke2 {[%clk 0:00:44.1]} 40...
Kd6 {[%clk 0:00:18.9]} 41. Kd3 {[%clk 0:00:43.9]} 41... Nh7 {[%clk 0:00:19.2]}
42. Be8 {[%clk 0:00:40.2]} 42... e5 {[%clk 0:00:19.3]} 43. Bg6 {[%clk
0:00:36.9]} 43... Nf8 {[%clk 0:00:19.6]} 44. Bf7 {[%clk 0:00:36.7]} 44... Nh7
{[%clk 0:00:18.8]} 45. Bg6 {[%clk 0:00:36.4]} 45... Nf8 {[%clk 0:00:19.2]} 46.
Bf7 {[%clk 0:00:36.8]} 46... Nd7 {[%clk 0:00:17.3]} 47. Bg6 {[%clk 0:00:35.8]}
47... Nc5+ {[%clk 0:00:17.7]} 48. Ke2 {[%clk 0:00:33.4]} 48... Ke6 {[%clk
0:00:18.6]} 49. Be8 {[%clk 0:00:30.4]} 49... exf4 {[%clk 0:00:16.4]} 50. exf4
{[%clk 0:00:30.5]} 50... d4 {[%clk 0:00:17.3]} 51. Bg6 {[%clk 0:00:29.1]} 51...
Kd5 {[%clk 0:00:17.5]} 52. Kd2 {[%clk 0:00:28.1]} 52... Ke6 {[%clk 0:00:17.4]}
53. Bh7 {[%clk 0:00:26.3]} 53... Kf7 {[%clk 0:00:17.6]} 54. Bf5 {[%clk
0:00:25.8]} 54... Kg7 {[%clk 0:00:18.5]} 55. Bg6 {[%clk 0:00:24.5]} 55... a4
{[%clk 0:00:18.9]} 56. bxa4 {[%clk 0:00:21.8]} 56... Nxa4 {[%clk 0:00:19.8]} 57.
Bf5 {[%clk 0:00:19.6]} 57... Nc5 {[%clk 0:00:19.2]} 58. Bc2 {[%clk 0:00:15.6]}
58... Kf8 {[%clk 0:00:19.3]} 59. Bg6 {[%clk 0:00:15.1]} 59... Ke7 {[%clk
0:00:19.5]} 60. Bf5 {[%clk 0:00:13.8]} 60... Kf7 {[%clk 0:00:19.6]} 61. Bg6+
{[%clk 0:00:13.7]} 61... Ke6 {[%clk 0:00:20.1]} 62. Bf5+ {[%clk 0:00:14]} 62...
Kd5 {[%clk 0:00:20.2]} 63. g5 {[%clk 0:00:12.4]} 63... fxg5 {[%clk 0:00:20.4]}
64. fxg5 {[%clk 0:00:12]} 64... Ke5 {[%clk 0:00:20]} 65. gxh6 {[%clk 0:00:10.5]}
65... Kf6 {[%clk 0:00:18.9]} 66. h7 {[%clk 0:00:10.1]} 66... Kg7 {[%clk
0:00:19.2]} 67. h6+ {[%clk 0:00:10]} 67... Kh8 {[%clk 0:00:19.4]} 68. Bg6 {[%clk
0:00:09.5]} 68... Na4 {[%clk 0:00:17.6]} 69. Kd3 {[%clk 0:00:08.8]} 69... Nc3
{[%clk 0:00:18.5]} 70. Kxd4 {[%clk 0:00:05.7]} 70... Nxa2 {[%clk 0:00:18.6]} 71.
Kc4 {[%clk 0:00:05.6]} 71... Nc1 {[%clk 0:00:17.1]} 72. Bf5 {[%clk 0:00:03.4]}
72... Ne2 {[%clk 0:00:18]} 73. Kxb4 {[%clk 0:00:02.7]} 73... Nd4 {[%clk
0:00:18.3]} 74. Kc4 {[%clk 0:00:02.6]} 74... Nf3 {[%clk 0:00:18.2]} 75. Kd5
{[%clk 0:00:01.9]} 75... Ng5 {[%clk 0:00:17.9]} 76. Ke5 {[%clk 0:00:01.6]} 76...
Nf7+ {[%clk 0:00:18.3]} 77. Kf6 {[%clk 0:00:01.7]} 77... Nxh6 {[%clk 0:00:19.2]}
78. Ke7 {[%clk 0:00:01.2]} 78... Nxf5+ {[%clk 0:00:18.1]} 79. Kf6 {[%clk
0:00:01.3]} 79... Ng3 {[%clk 0:00:18.5]} 80. Kf7 {[%clk 0:00:01.6]} 80... Nh5
{[%clk 0:00:18.8]} 81. Kf8 {[%clk 0:00:01.9]} 81... Kxh7 {[%clk 0:00:19.7]}
1/2-1/2

[Event "Early-Titled-Tuesday-Blitz-April-23-2024"]
[Site "Chess.com"]
[Date "2024.04.23"]
[Round "5"]
[White "wild3000"]
[Black "Grossboss19"]
[Result "1-0"]
[WhiteElo "2492"]
[BlackElo "2615"]
[TimeControl "180+1"]
[EndTime "9:00:53 PDT"]
[Termination "wild3000 won on time"]

1. d4 {[%clk 0:03:00.9]} 1... d5 {[%clk 0:02:49.8]} 2. Nf3 {[%clk 0:03:00.3]}
2... c6 {[%clk 0:02:49.7]} 3. c4 {[%clk 0:02:57.9]} 3... e6 {[%clk 0:02:48.8]}
4. Nc3 {[%clk 0:02:57.2]} 4... Nf6 {[%clk 0:02:45.4]} 5. e3 {[%clk 0:02:57.2]}
5... a6 {[%clk 0:02:45]} 6. Be2 {[%clk 0:02:51.6]} 6... b5 {[%clk 0:02:44.7]} 7.
cxd5 {[%clk 0:02:41.6]} 7... exd5 {[%clk 0:02:42.9]} 8. O-O {[%clk 0:02:42.5]}
8... Bd6 {[%clk 0:02:42.8]} 9. Ne5 {[%clk 0:02:39.6]} 9... O-O {[%clk
0:02:42.4]} 10. f4 {[%clk 0:02:39.6]} 10... Nfd7 {[%clk 0:02:37.3]} 11. Bd3
{[%clk 0:02:35.1]} 11... f5 {[%clk 0:02:31.5]} 12. a4 {[%clk 0:02:28.6]} 12...
Nf6 {[%clk 0:02:24.9]} 13. axb5 {[%clk 0:02:25.2]} 13... cxb5 {[%clk 0:02:25.8]}
14. Nxb5 {[%clk 0:02:17.3]} 14... Ne4 {[%clk 0:02:25.1]} 15. Nxd6 {[%clk
0:02:10.5]} 15... Qxd6 {[%clk 0:02:23]} 16. Bxe4 {[%clk 0:01:50.6]} 16... fxe4
{[%clk 0:02:16]} 17. b3 {[%clk 0:01:50.5]} 17... Rd8 {[%clk 0:02:02.5]} 18. Ba3
{[%clk 0:01:49.6]} 18... Qb6 {[%clk 0:02:00.3]} 19. Qh5 {[%clk 0:01:34.9]} 19...
g6 {[%clk 0:01:53.6]} 20. Qg5 {[%clk 0:01:30.3]} 20... Nd7 {[%clk 0:01:27.9]}
21. Qe7 {[%clk 0:01:06.5]} 21... Nxe5 {[%clk 0:00:56.6]} 22. fxe5 {[%clk
0:01:05]} 22... Bf5 {[%clk 0:00:56.4]} 23. g4 {[%clk 0:00:55.4]} 23... Re8
{[%clk 0:00:53.5]} 24. Qg5 {[%clk 0:00:45.1]} 24... Bd7 {[%clk 0:00:48.3]} 25.
Bd6 {[%clk 0:00:28.2]} 25... Re6 {[%clk 0:00:39.7]} 26. Qf4 {[%clk 0:00:26.9]}
26... Qd8 {[%clk 0:00:31.6]} 27. Qf7+ {[%clk 0:00:23.8]} 27... Kh8 {[%clk
0:00:31.7]} 28. Rf6 {[%clk 0:00:17.8]} 28... Qe8 {[%clk 0:00:24.6]} 29. Qxe8+
{[%clk 0:00:16.6]} 29... Raxe8 {[%clk 0:00:22.3]} 30. Rxa6 {[%clk 0:00:14.7]}
30... Rc8 {[%clk 0:00:16.1]} 31. Rxe6 {[%clk 0:00:14.5]} 31... Bxe6 {[%clk
0:00:16.5]} 32. h3 {[%clk 0:00:14.7]} 32... h5 {[%clk 0:00:16]} 33. Bc5 {[%clk
0:00:14.2]} 33... Re8 {[%clk 0:00:14.8]} 34. gxh5 {[%clk 0:00:13.6]} 34... gxh5
{[%clk 0:00:15.7]} 35. Kh2 {[%clk 0:00:13.9]} 35... Kg7 {[%clk 0:00:15.2]} 36.
b4 {[%clk 0:00:13.5]} 36... Kg6 {[%clk 0:00:07.8]} 37. b5 {[%clk 0:00:13.6]}
37... Kf5 {[%clk 0:00:08.1]} 38. b6 {[%clk 0:00:13.6]} 38... h4 {[%clk
0:00:06.8]} 39. Ra2 {[%clk 0:00:12.3]} 39... Rb8 {[%clk 0:00:06.2]} 40. Rf2+
{[%clk 0:00:11.7]} 40... Kg5 {[%clk 0:00:06.6]} 41. Be7+ {[%clk 0:00:11.4]}
41... Kh5 {[%clk 0:00:06.3]} 42. Bc5 {[%clk 0:00:09.9]} 42... Kg5 {[%clk
0:00:05.8]} 43. Rf6 {[%clk 0:00:09.7]} 43... Bc8 {[%clk 0:00:03.4]} 44. Be7
{[%clk 0:00:08]} 44... Kh5 {[%clk 0:00:03.1]} 45. e6 {[%clk 0:00:06.2]} 45...
Rxb6 {[%clk 0:00:02.8]} 46. Rf5+ {[%clk 0:00:03.8]} 46... Kg6 {[%clk 0:00:03.4]}
47. Rf6+ {[%clk 0:00:03.1]} 47... Kh5 {[%clk 0:00:03.4]} 48. Rf2 {[%clk
0:00:02.8]} 48... Bxe6 {[%clk 0:00:03.1]} 49. Bc5 {[%clk 0:00:02.5]} 49... Rc6
{[%clk 0:00:03.4]} 50. Kg2 {[%clk 0:00:02.2]} 50... Kg5 {[%clk 0:00:03.9]} 51.
Rf4 {[%clk 0:00:02.4]} 51... Bf5 {[%clk 0:00:04.1]} 52. Be7+ {[%clk 0:00:02.3]}
52... Kg6 {[%clk 0:00:04.7]} 53. Bxh4 {[%clk 0:00:02.3]} 53... Rc2+ {[%clk
0:00:05.4]} 54. Kg1 {[%clk 0:00:01.7]} 54... Rc1+ {[%clk 0:00:05.6]} 55. Kh2
{[%clk 0:00:01.9]} 55... Rc2+ {[%clk 0:00:06]} 56. Bf2 {[%clk 0:00:02.8]} 56...
Kg5 {[%clk 0:00:05.7]} 57. Kg3 {[%clk 0:00:03.7]} 57... Be6 {[%clk 0:00:05]} 58.
h4+ {[%clk 0:00:04.6]} 58... Kg6 {[%clk 0:00:05.5]} 59. h5+ {[%clk 0:00:04.4]}
59... Kxh5 {[%clk 0:00:05]} 60. Rf6 {[%clk 0:00:04.8]} 60... Bg8 {[%clk
0:00:05.4]} 61. Rf8 {[%clk 0:00:04.8]} 61... Be6 {[%clk 0:00:04.6]} 62. Rf6
{[%clk 0:00:04.8]} 62... Bc8 {[%clk 0:00:05.2]} 63. Rf8 {[%clk 0:00:04.5]} 63...
Kg5 {[%clk 0:00:05.6]} 64. Rd8 {[%clk 0:00:04.1]} 64... Bb7 {[%clk 0:00:04.9]}
65. Rd7 {[%clk 0:00:03.6]} 65... Ba8 {[%clk 0:00:05]} 66. Rg7+ {[%clk
0:00:03.4]} 66... Kf6 {[%clk 0:00:05]} 67. Rg8 {[%clk 0:00:03.6]} 67... Bb7
{[%clk 0:00:04.9]} 68. Rh8 {[%clk 0:00:03.4]} 68... Ke6 {[%clk 0:00:04.9]} 69.
Rh6+ {[%clk 0:00:03.7]} 69... Kd7 {[%clk 0:00:05.3]} 70. Bg1 {[%clk 0:00:03.7]}
70... Rc1 {[%clk 0:00:05.1]} 71. Bf2 {[%clk 0:00:03.7]} 71... Bc6 {[%clk
0:00:04.7]} 72. Rh7+ {[%clk 0:00:03.9]} 72... Kd6 {[%clk 0:00:04.5]} 73. Kf4
{[%clk 0:00:04.2]} 73... Rf1 {[%clk 0:00:03.9]} 74. Rh6+ {[%clk 0:00:04.6]}
74... Kc7 {[%clk 0:00:03.9]} 75. Kg3 {[%clk 0:00:05.5]} 75... Kb6 {[%clk
0:00:04.5]} 76. Kg2 {[%clk 0:00:05.7]} 76... Rc1 {[%clk 0:00:04.6]} 77. Rd6
{[%clk 0:00:05.6]} 77... Kb5 {[%clk 0:00:04.8]} 78. Kg3 {[%clk 0:00:05.8]} 78...
Rc2 {[%clk 0:00:04.8]} 79. Kg2 {[%clk 0:00:05.9]} 79... Kb4 {[%clk 0:00:04.8]}
80. Rd8 {[%clk 0:00:06.1]} 80... Rc4 {[%clk 0:00:04.6]} 81. Rb8+ {[%clk
0:00:06]} 81... Kc3 {[%clk 0:00:04.9]} 82. Rb1 {[%clk 0:00:06.3]} 82... Kd2
{[%clk 0:00:04.4]} 83. Rb2+ {[%clk 0:00:06.6]} 83... Kd3 {[%clk 0:00:04.8]} 84.
Ra2 {[%clk 0:00:06.2]} 84... Rb4 {[%clk 0:00:02.8]} 85. Ra3+ {[%clk 0:00:06]}
85... Kc4 {[%clk 0:00:02.5]} 86. Ra6 {[%clk 0:00:05.7]} 86... Bb5 {[%clk
0:00:02.2]} 87. Ra1 {[%clk 0:00:06.1]} 87... Kd3 {[%clk 0:00:02.5]} 88. Rd1+
{[%clk 0:00:06]} 88... Kc2 {[%clk 0:00:03]} 89. Ra1 {[%clk 0:00:06]} 89... Bc4
{[%clk 0:00:03.1]} 90. Rh1 {[%clk 0:00:05.8]} 90... Rb7 {[%clk 0:00:03.6]} 91.
Rh4 {[%clk 0:00:05]} 91... Rg7+ {[%clk 0:00:04.1]} 92. Kh2 {[%clk 0:00:05]}
92... Kd1 {[%clk 0:00:04.7]} 93. Bg3 {[%clk 0:00:04.5]} 93... Ke2 {[%clk
0:00:05]} 94. Bf4 {[%clk 0:00:04.7]} 94... Kf3 {[%clk 0:00:04.8]} 95. Rh3+
{[%clk 0:00:04.6]} 95... Kf2 {[%clk 0:00:05.2]} 96. Rg3 {[%clk 0:00:04.6]} 96...
Rh7+ {[%clk 0:00:05.2]} 97. Rh3 {[%clk 0:00:04.7]} 97... Rf7 {[%clk 0:00:04.1]}
98. Rg3 {[%clk 0:00:03.8]} 98... Bf1 {[%clk 0:00:02.9]} 99. Rg6 {[%clk
0:00:02.9]} 99... Rh7+ {[%clk 0:00:02.8]} 100. Rh6 {[%clk 0:00:03.2]} 100... Rg7
{[%clk 0:00:03.1]} 101. Kh1 {[%clk 0:00:02.8]} 101... Bg2+ {[%clk 0:00:02.8]}
102. Kh2 {[%clk 0:00:03]} 102... Bf3 {[%clk 0:00:03.4]} 103. Kh3 {[%clk
0:00:03.3]} 103... Rg1 {[%clk 0:00:03.3]} 104. Kh4 {[%clk 0:00:03.3]} 104... Kg2
{[%clk 0:00:02]} 105. Kg5 {[%clk 0:00:03.1]} 105... Rc1 {[%clk 0:00:01.6]} 106.
Rh2+ {[%clk 0:00:03.1]} 106... Kf1 {[%clk 0:00:02.1]} 107. Kf6 {[%clk
0:00:03.5]} 107... Ke1 {[%clk 0:00:01.9]} 108. Ke5 {[%clk 0:00:03.8]} 1-0

[Event "Early-Titled-Tuesday-Blitz-April-23-2024"]
[Site "Chess.com"]
[Date "2024.04.23"]
[Round "6"]
[White "LeoLV10"]
[Black "gpsji27"]
[Result "1-0"]
[WhiteElo "2504"]
[BlackElo "2322"]
[TimeControl "180+1"]
[EndTime "9:03:17 PDT"]
[Termination "LeoLV10 won by resignation"]

1. e4 {[%clk 0:03:00.9]} 1... e5 {[%clk 0:02:57.4]} 2. Nf3 {[%clk 0:03:00.4]}
2... Nc6 {[%clk 0:02:50.3]} 3. Bb5 {[%clk 0:03:00.2]} 3... a6 {[%clk 0:02:50]}
4. Ba4 {[%clk 0:03:00.8]} 4... Nf6 {[%clk 0:02:49.9]} 5. O-O {[%clk 0:03:01.3]}
5... Be7 {[%clk 0:02:50.6]} 6. c3 {[%clk 0:02:57.6]} 6... Nxe4 {[%clk 0:02:49]}
7. Re1 {[%clk 0:02:56.6]} 7... Nc5 {[%clk 0:02:44.7]} 8. Nxe5 {[%clk 0:02:55.3]}
8... Nxe5 {[%clk 0:02:28.9]} 9. Rxe5 {[%clk 0:02:56.2]} 9... O-O {[%clk
0:02:29.4]} 10. Bc2 {[%clk 0:02:55.7]} 10... d6 {[%clk 0:02:22]} 11. Re1 {[%clk
0:02:54.9]} 11... Be6 {[%clk 0:02:18.7]} 12. d4 {[%clk 0:02:55.1]} 12... Nd7
{[%clk 0:02:05.2]} 13. d5 {[%clk 0:02:54.1]} 13... Ne5 {[%clk 0:02:00.5]} 14.
dxe6 {[%clk 0:02:53.9]} 14... fxe6 {[%clk 0:02:01.4]} 15. Be3 {[%clk 0:02:48.5]}
15... Bg5 {[%clk 0:01:58.6]} 16. Nd2 {[%clk 0:02:46.9]} 16... Qf6 {[%clk
0:01:57.3]} 17. Ne4 {[%clk 0:02:43.9]} 1-0

[Event "Early-Titled-Tuesday-Blitz-April-23-2024"]
[Site "Chess.com"]
[Date "2024.04.23"]
[Round "6"]
[White "levallem"]
[Black "shirovin"]
[Result "1-0"]
[WhiteElo "2318"]
[BlackElo "2057"]
[TimeControl "180+1"]
[EndTime "9:04:13 PDT"]
[Termination "levallem won by resignation"]

1. d4 {[%clk 0:03:00.9]} 1... f5 {[%clk 0:02:57.6]} 2. g4 {[%clk 0:03:00.2]}
2... fxg4 {[%clk 0:02:56.1]} 3. h3 {[%clk 0:02:58.9]} 3... g3 {[%clk 0:02:55.7]}
4. fxg3 {[%clk 0:02:58.4]} 4... Nf6 {[%clk 0:02:56.3]} 5. Bg2 {[%clk 0:02:57.2]}
5... d5 {[%clk 0:02:53]} 6. Nf3 {[%clk 0:02:50.8]} 6... e6 {[%clk 0:02:49.9]} 7.
Bf4 {[%clk 0:02:50.3]} 7... Bd6 {[%clk 0:02:48.5]} 8. e3 {[%clk 0:02:49.8]} 8...
Ne4 {[%clk 0:02:39.4]} 9. Ne5 {[%clk 0:02:43]} 9... O-O {[%clk 0:02:21.7]} 10.
Bxe4 {[%clk 0:02:36.8]} 10... dxe4 {[%clk 0:02:15.8]} 11. Nd2 {[%clk 0:02:36.6]}
11... g5 {[%clk 0:02:06.9]} 12. Qg4 {[%clk 0:02:36]} 12... Be7 {[%clk
0:01:49.1]} 13. h4 {[%clk 0:02:31.2]} 13... Kh8 {[%clk 0:01:43.8]} 14. hxg5
{[%clk 0:02:30.9]} 14... Rg8 {[%clk 0:01:43.1]} 15. Nf7+ {[%clk 0:02:29.8]} 1-0

[Event "Early-Titled-Tuesday-Blitz-April-23-2024"]
[Site "Chess.com"]
[Date "2024.04.23"]
[Round "6"]
[White "bintang_top"]
[Black "Payyappat"]
[Result "1-0"]
[WhiteElo "2387"]
[BlackElo "2516"]
[TimeControl "180+1"]
[EndTime "9:04:36 PDT"]
[Termination "bintang_top won by resignation"]

1. d4 {[%clk 0:02:55.8]} 1... Nf6 {[%clk 0:02:59.1]} 2. Bf4 {[%clk 0:02:55.1]}
2... c5 {[%clk 0:03:00]} 3. c3 {[%clk 0:02:53.8]} 3... d5 {[%clk 0:02:58.4]} 4.
Nf3 {[%clk 0:02:49.5]} 4... Nc6 {[%clk 0:02:58.4]} 5. Nbd2 {[%clk 0:02:49]} 5...
g6 {[%clk 0:02:58.2]} 6. h3 {[%clk 0:02:47.7]} 6... Bg7 {[%clk 0:02:58.1]} 7. e3
{[%clk 0:02:46.7]} 7... O-O {[%clk 0:02:58.2]} 8. Bd3 {[%clk 0:02:45.2]} 8...
Bf5 {[%clk 0:02:54.6]} 9. Bxf5 {[%clk 0:02:43.9]} 9... gxf5 {[%clk 0:02:55.5]}
10. Ne5 {[%clk 0:02:43.6]} 10... Ne4 {[%clk 0:02:55]} 11. g4 {[%clk 0:02:31.9]}
11... cxd4 {[%clk 0:02:40.1]} 12. exd4 {[%clk 0:02:30.5]} 12... Nxe5 {[%clk
0:02:40.2]} 13. Bxe5 {[%clk 0:02:27.9]} 13... Bxe5 {[%clk 0:02:36.4]} 14. dxe5
{[%clk 0:02:27.4]} 14... e6 {[%clk 0:02:31]} 15. gxf5 {[%clk 0:02:25.2]} 15...
exf5 {[%clk 0:02:31.9]} 16. Qh5 {[%clk 0:02:17]} 16... Qd7 {[%clk 0:02:07.8]}
17. Nxe4 {[%clk 0:01:54.1]} 17... dxe4 {[%clk 0:02:02.6]} 18. Qh6 {[%clk
0:01:34.3]} 18... Kh8 {[%clk 0:02:00.2]} 19. Qf6+ {[%clk 0:01:33.5]} 1-0

[Event "Early-Titled-Tuesday-Blitz-April-23-2024"]
[Site "Chess.com"]
[Date "2024.04.23"]
[Round "6"]
[White "GMAneta"]
[Black "GambitGiesbergen"]
[Result "1-0"]
[WhiteElo "2499"]
[BlackElo "2315"]
[TimeControl "180+1"]
[EndTime "9:04:49 PDT"]
[Termination "GMAneta won by resignation"]

1. d4 {[%clk 0:02:59.7]} 1... Nf6 {[%clk 0:02:58.3]} 2. Nf3 {[%clk 0:02:56]}
2... g6 {[%clk 0:02:58.1]} 3. c4 {[%clk 0:02:55.9]} 3... Bg7 {[%clk 0:02:58.7]}
4. g3 {[%clk 0:02:56]} 4... O-O {[%clk 0:02:59.3]} 5. Bg2 {[%clk 0:02:56.4]}
5... d6 {[%clk 0:03:00.2]} 6. O-O {[%clk 0:02:56.5]} 6... Nbd7 {[%clk
0:03:01.1]} 7. Nc3 {[%clk 0:02:56.2]} 7... e5 {[%clk 0:03:01.7]} 8. e4 {[%clk
0:02:55.8]} 8... c6 {[%clk 0:03:02.4]} 9. h3 {[%clk 0:02:54.9]} 9... Qb6 {[%clk
0:03:02.9]} 10. Re1 {[%clk 0:02:54.5]} 10... Re8 {[%clk 0:02:57.1]} 11. Re2
{[%clk 0:02:54.2]} 11... exd4 {[%clk 0:02:57]} 12. Nxd4 {[%clk 0:02:54.2]} 12...
Ne5 {[%clk 0:02:57]} 13. b3 {[%clk 0:02:42.6]} 13... Bxh3 {[%clk 0:02:56.3]} 14.
Na4 {[%clk 0:02:38.9]} 14... Qxd4 {[%clk 0:02:36.8]} 15. Qxd4 {[%clk 0:02:37.8]}
15... Nd5 {[%clk 0:02:19.6]} 16. Qd1 {[%clk 0:02:16.5]} 16... Bxg2 {[%clk
0:02:16]} 17. Kxg2 {[%clk 0:02:14.8]} 17... Nb4 {[%clk 0:02:11.3]} 18. Bb2
{[%clk 0:02:13]} 18... Nbd3 {[%clk 0:02:09.9]} 19. Bxe5 {[%clk 0:02:11.4]} 19...
Nxe5 {[%clk 0:02:08.8]} 20. Rc1 {[%clk 0:02:05]} 20... Rad8 {[%clk 0:02:08.2]}
21. Rcc2 {[%clk 0:02:02]} 21... Re6 {[%clk 0:02:07.3]} 22. Rcd2 {[%clk
0:02:01.8]} 22... Bh6 {[%clk 0:02:03.6]} 23. f4 {[%clk 0:01:57.7]} 23... Ng4
{[%clk 0:01:58.4]} 24. Nc5 {[%clk 0:01:56.6]} 24... Rf6 {[%clk 0:01:44.1]} 25.
Nxb7 {[%clk 0:01:54.8]} 25... Rb8 {[%clk 0:01:42.5]} 26. Nxd6 {[%clk 0:01:54.2]}
1-0

[Event "Early-Titled-Tuesday-Blitz-April-23-2024"]
[Site "Chess.com"]
[Date "2024.04.23"]
[Round "6"]
[White "Der_Balak_3Halak"]
[Black "dianamirza"]
[Result "1-0"]
[WhiteElo "2448"]
[BlackElo "1994"]
[TimeControl "180+1"]
[EndTime "9:05:19 PDT"]
[Termination "Der_Balak_3Halak won by resignation"]

1. g3 {[%clk 0:03:00.9]} 1... d5 {[%clk 0:02:43.6]} 2. Bg2 {[%clk 0:03:01.8]}
2... c6 {[%clk 0:02:44.1]} 3. d3 {[%clk 0:03:01.5]} 3... g6 {[%clk 0:02:44.2]}
4. e4 {[%clk 0:03:01.3]} 4... Bg7 {[%clk 0:02:42.8]} 5. exd5 {[%clk 0:03:01.1]}
5... cxd5 {[%clk 0:02:42.2]} 6. Ne2 {[%clk 0:03:00.8]} 6... e5 {[%clk
0:02:36.7]} 7. O-O {[%clk 0:02:58.4]} 7... Ne7 {[%clk 0:02:32.6]} 8. Nbc3 {[%clk
0:02:57.5]} 8... Be6 {[%clk 0:02:31.7]} 9. Bg5 {[%clk 0:02:56.4]} 9... h6 {[%clk
0:02:25.8]} 10. Bxe7 {[%clk 0:02:52.8]} 10... Kxe7 {[%clk 0:02:26.7]} 11. f4
{[%clk 0:02:45]} 11... Re8 {[%clk 0:02:21]} 12. fxe5 {[%clk 0:02:41.7]} 12...
Bxe5 {[%clk 0:02:18.7]} 13. d4 {[%clk 0:02:36.3]} 13... Bg7 {[%clk 0:02:16]} 14.
Nf4 {[%clk 0:02:36]} 14... Kf8 {[%clk 0:01:54.7]} 15. Nxe6+ {[%clk 0:02:31.6]}
15... Rxe6 {[%clk 0:01:55.6]} 16. Bxd5 {[%clk 0:02:30.9]} 16... Re7 {[%clk
0:01:46.3]} 17. Qf3 {[%clk 0:02:30.5]} 17... Bxd4+ {[%clk 0:01:40]} 18. Kg2
{[%clk 0:02:24.5]} 18... f5 {[%clk 0:01:38.1]} 19. Bxb7 {[%clk 0:02:14.9]} 19...
Re3 {[%clk 0:01:28.1]} 20. Qf4 {[%clk 0:01:56.2]} 20... Re4 {[%clk 0:00:59.4]}
21. Nxe4 {[%clk 0:01:47]} 1-0

[Event "Early-Titled-Tuesday-Blitz-April-23-2024"]
[Site "Chess.com"]
[Date "2024.04.23"]
[Round "6"]
[White "Shiner22"]
[Black "Slovineanu"]
[Result "0-1"]
[WhiteElo "2320"]
[BlackElo "2501"]
[TimeControl "180+1"]
[EndTime "9:05:40 PDT"]
[Termination "Slovineanu won by resignation"]

1. e4 {[%clk 0:03:00.9]} 1... c6 {[%clk 0:03:00]} 2. d4 {[%clk 0:02:47.7]} 2...
d5 {[%clk 0:02:59.3]} 3. exd5 {[%clk 0:02:48.1]} 3... cxd5 {[%clk 0:02:59.4]} 4.
c4 {[%clk 0:02:48.8]} 4... Nf6 {[%clk 0:02:59.3]} 5. Nc3 {[%clk 0:02:47.9]} 5...
e6 {[%clk 0:02:59.6]} 6. Nf3 {[%clk 0:02:46.3]} 6... Bb4 {[%clk 0:02:58.8]} 7.
cxd5 {[%clk 0:02:44]} 7... Nxd5 {[%clk 0:02:58.6]} 8. Bd2 {[%clk 0:02:44]} 8...
O-O {[%clk 0:02:58.6]} 9. Bd3 {[%clk 0:02:44]} 9... b6 {[%clk 0:02:59]} 10. Qc2
{[%clk 0:02:41.4]} 10... h6 {[%clk 0:02:55.6]} 11. O-O {[%clk 0:02:41.3]} 11...
Bb7 {[%clk 0:02:51.4]} 12. a3 {[%clk 0:02:32.6]} 12... Bd6 {[%clk 0:02:45.6]}
13. Rac1 {[%clk 0:02:25]} 13... Nd7 {[%clk 0:02:37.8]} 14. Be4 {[%clk
0:02:06.2]} 14... N7f6 {[%clk 0:02:34.4]} 15. Bd3 {[%clk 0:02:03.6]} 15... Rc8
{[%clk 0:02:29.9]} 16. Qb3 {[%clk 0:01:54.8]} 16... Bf4 {[%clk 0:02:25.9]} 17.
h3 {[%clk 0:01:29.2]} 17... Bxd2 {[%clk 0:02:24.3]} 18. Nxd2 {[%clk 0:01:28.9]}
18... Nf4 {[%clk 0:02:20.3]} 19. Nce4 {[%clk 0:01:10.7]} 19... Rxc1 {[%clk
0:01:48.9]} 20. Rxc1 {[%clk 0:01:05.1]} 20... Nxe4 {[%clk 0:01:44.5]} 21. Bxe4
{[%clk 0:01:01]} 21... Ne2+ {[%clk 0:01:40]} 0-1